[Event "12th National Amateur Chess-ch 2025"]
[Site "Bihar"]
[Date "2025.03.26"]
[Round "2.11"]
[White "Akash Srivastav"]
[Black "Prayan"]
[Result "1-0"]
[Annotator "NA RC"]
[ECO "B50"]
[WhiteElo "1689"]
[BlackElo "1548"]
[PlyCount "65"]
[EventDate "2025.03.25"]
[EventCountry "IND"]
[SourceTitle "playchess.com"]
[Source "ChessBase"]
[SourceQuality "1"]
[TimeControl "5400+30"]

1. e4 {[%emt 0:00:36]} c5 {[%emt 0:00:39]} 2. Nf3 {[%emt 0:00:29]} d6 {[%emt 0:00:24]} 3. Bd3 {[%emt 0:00:39]} Nc6 {[%emt 0:00:51]} 4. h3 {[%emt 0:00:26]} Nf6 {[%emt 0:00:44]} 5. O-O {[%emt 0:00:17]} e5 {[%emt 0:02:22]} 6. c3 {[%emt 0:00:20]} Be7 {[%emt 0:01:39]} 7. Bc2 {[%emt 0:01:19]} O-O {[%emt 0:01:17]} 8. d4 {[%emt 0:00:47]} cxd4 {[%emt 0:01:22]} 9. cxd4 {[%emt 0:00:19]} exd4 {[%emt 0:01:17]} 10. Nxd4 {[%emt 0:00:29]} Nxd4 {[%emt 0:00:46]} 11. Qxd4 {[%emt 0:00:11]} Qb6 {[%emt 0:01:36]} 12. Qxb6 {[%emt 0:00:10]} axb6 {[%emt 0:00:05]} 13. Nc3 {[%emt 0:00:13]} Bd7 {[%emt 0:02:13]} 14. Be3 {[%emt 0:01:52]} b5 {[%emt 0:01:24]} 15. a3 {[%emt 0:02:03]} Bc6 {[%emt 0:01:35]} 16. f3 {[%emt 0:00:37]} Rfd8 {[%emt 0:02:45]} 17. Rfd1 {[%emt 0:02:49]} d5 {[%emt 0:16:41]} 18. Bb6 {[%emt 0:03:41]} Rdc8 {[%emt 0:02:58]} 19. exd5 {[%emt 0:12:06]} Nxd5 {[%emt 0:00:51]} 20. Rxd5 {[%emt 0:08:09]} Bxd5 {[%emt 0:02:34]} 21. Nxd5 {[%emt 0:00:11]} Rxc2 {[%emt 0:01:54]} 22. Nxe7+ {[%emt 0:01:24]} Kf8 {[%emt 0:01:40]} 23. Nd5 {[%emt 0:00:43]} Re8 {[%emt 0:01:52]} 24. Bd4 {[%emt 0:06:15]} Rd8 {[%emt 0:08:24]} 25. Nb4 {[%emt 0:00:35]} Re2 {[%emt 0:01:15]} 26. Kf1 {[%emt 0:02:14]} Rd2 {[%emt 0:02:08]} 27. Bc3 {[%emt 0:01:09]} R2d7 {[%emt 0:02:08]} 28. Kf2 {[%emt 0:00:31]} f6 {[%emt 0:01:42]} 29. Re1 {[%emt 0:00:20]} Kf7 {[%emt 0:02:08]} 30. Nc2 {[%emt 0:00:33]} Rd3 {[%emt 0:01:40]} 31. Re4 {[%emt 0:02:19]} Rc8 {[%emt 0:02:35]} 32. Nd4 {[%emt 0:00:30]} b4 {[%emt 0:01:35]} 33. Bxb4 {[%emt 0:01:14]} 1-0

[Event "12th National Amateur Chess-ch 2025"]
[Site "Bihar"]
[Date "2025.03.26"]
[Round "2.12"]
[White "Avinash Kumar Yadav"]
[Black "Tejas Shandilya"]
[Result "0-1"]
[Annotator "NA RC"]
[ECO "B56"]
[WhiteElo "1547"]
[BlackElo "1675"]
[PlyCount "76"]
[EventDate "2025.03.25"]
[EventCountry "IND"]
[SourceTitle "playchess.com"]
[Source "ChessBase"]
[SourceQuality "1"]
[TimeControl "5400+30"]

1. e4 {[%emt 0:07:04]} c5 {[%emt 0:01:33]} 2. Nf3 {[%emt 0:00:06]} Nc6 {[%emt 0:01:01]} 3. d4 {[%emt 0:00:20]} cxd4 {[%emt 0:01:17]} 4. Nxd4 {[%emt 0:00:06]} Nf6 {[%emt 0:01:21]} 5. Nc3 {[%emt 0:07:05]} d6 {[%emt 0:02:53]} 6. Bb5 {[%emt 0:05:05]} Bd7 {[%emt 0:01:40]} 7. Be3 {[%emt 0:03:20]} g6 {[%emt 0:00:30]} 8. f3 {[%emt 0:00:18]} Bg7 {[%emt 0:02:54]} 9. Qd2 {[%emt 0:00:37]} a6 {[%emt 0:01:30]} 10. Bc4 {[%emt 0:03:44]} Rc8 {[%emt 0:02:44]} 11. Bb3 {[%emt 0:00:20]} b5 {[%emt 0:02:55]} 12. O-O-O {[%emt 0:02:38]} Na5 {[%emt 0:04:01]} 13. Bh6 {[%emt 0:05:15]} Nxb3+ {[%emt 0:02:30]} 14. axb3 {[%emt 0:01:34]} O-O {[%emt 0:01:37]} 15. Bxg7 {[%emt 0:00:47]} Kxg7 {[%emt 0:00:08]} 16. Rhe1 {[%emt 0:00:59]} Qa5 {[%emt 0:01:57]} 17. e5 {[%emt 0:06:35]} Nd5 {[%emt 0:07:28]} 18. Ndxb5 {[%emt 0:05:51]} Nb4 {[%emt 0:03:44]} 19. Na3 {[%emt 0:04:21]} Rxc3 {[%emt 0:01:07]} 20. Qd4 {[%emt 0:02:47]} Rxc2+ {[%emt 0:06:11]} 21. Nxc2 {[%emt 0:03:03]} Nxc2 {[%emt 0:00:51]} 22. Kxc2 {[%emt 0:00:58]} Bf5+ {[%emt 0:00:44]} 23. Re4 {[%emt 0:03:46]} Rc8+ {[%emt 0:02:08]} 24. Kb1 {[%emt 0:04:10]} dxe5 {[%emt 0:00:24]} 25. Qd2 {[%emt 0:08:32]} Qb6 {[%emt 0:03:34]} 26. Ka2 {[%emt 0:01:06]} Bxe4 {[%emt 0:00:11]} 27. fxe4 {[%emt 0:00:45]} Rc5 {[%emt 0:00:07]} 28. b4 {[%emt 0:05:26]} Rb5 {[%emt 0:01:13]} 29. Qc3 {[%emt 0:04:57]} a5 {[%emt 0:01:37]} 30. Rd5 {[%emt 0:03:13]} Rxd5 {[%emt 0:02:02]} 31. exd5 {[%emt 0:00:12]} Qxb4 {[%emt 0:05:37]} 32. Qxb4 {[%emt 0:02:14]} axb4 {[%emt 0:00:04]} 33. Kb3 {[%emt 0:00:04]} e4 {[%emt 0:00:13]} 34. Kxb4 {[%emt 0:01:43]} Kf6 {[%emt 0:00:03]} 35. Kc4 {[%emt 0:03:32]} Ke5 {[%emt 0:00:09]} 36. g3 {[%emt 0:03:58]} f5 {[%emt 0:00:31]} 37. b3 {[%emt 0:01:32]} g5 {[%emt 0:00:26]} 38. b4 {[%emt 0:00:14]} e3 {[%emt 0:00:09]} 0-1

[Event "12th National Amateur Chess-ch 2025"]
[Site "Bihar"]
[Date "2025.03.26"]
[Round "2.13"]
[White "Chinnam Vyshnavi"]
[Black "Bristy Mukherjee"]
[Result "0-1"]
[Annotator "TA"]
[ECO "B00"]
[WhiteElo "1793"]
[BlackElo "1985"]
[PlyCount "116"]
[EventDate "2025.03.25"]
[EventCountry "IND"]
[SourceTitle "playchess.com"]
[Source "ChessBase"]
[SourceQuality "1"]
[TimeControl "5400+30"]

{[%evp 9,115,20,22,26,28,18,36,25,27,43,169,174,170,161,177,83,82,56,70,60,58,67,66,64,68,41,54,43,50,40,55,30,40,33,66,16,29,16,36,31,33,33,39,24,22,4,10,-17,-14,-19,-23,-22,-22,-31,0,-43,-36,-73,-71,-64,-37,-90,-54,-214,-225,-347,-345,-367,-360,-4738,-4736,-4710,-4501,-923,-856,-4417,-585,-4910,-1412,-29978,-29973,-29981,-29980,-29980,-29981,-29980,-29981,-29983,-29983,-29986,-29987,-29986,-29987,-29988,-29989,-29991,-29992,-29992,-29993,-29996,-29997,-29997,-29998,-29998,-29998,-29998,-29999,-29999]} 1. e4 {[%emt 0:00:21]} b6 {[%emt 0:01:36]} 2. d4 {[%emt 0:01:25]} Bb7 {[%emt 0:00:06]} 3. Bd3 {[%emt 0:00:57]} e6 {[%emt 0:00:42]} 4. Nf3 {[%emt 0:00:37]} c5 {[%emt 0:06:43]} 5. d5 {[%emt 0:01:16]} exd5 {[%emt 0:05:38]} 6. exd5 {[%emt 0:00:11] B00: Queen's Fianchetto Defence, Nimzowitsch Defence.} Bxd5 {[%emt 0:04:29]} 7. Nc3 {[%emt 0:00:57]} Be6 {[%emt 0:06:33]} 8. Bf4 {[%emt 0:02:07][%mdl 1024] White is slightly better. White has compensation.} Nf6 {[%emt 0:10:37]} 9. Nb5 {[%emt 0:02:57] [#]} d6 {[%emt 0:01:23]} (9... Nd5 $14 10. Bg5 Nf6) 10. Ng5 $146 {[%emt 0:01:16] And now Qe2 would win.} (10. Nxd6+ Bxd6 11. Bxd6 Qxd6 12. Bb5+ Ke7 13. Qe2 Rd8 14. Ne5 a6 15. Bd3 Nc6 16. f4 {0-1 Mohota,N (2197)-Bristy,M (1817) IND-ch (Women) 48th 2022 (3)}) 10... a6 {[%emt 0:01:31]} 11. Qf3 {[%emt 0:04:29]} Bd5 {[%emt 0:06:43] [#]} 12. Ne4 {[%emt 0:28:11]} axb5 $16 {[%emt 0:07:35]} 13. Nxf6+ {[%emt 0:06:09]} Qxf6 {[%emt 0:00:16]} 14. Bxb5+ {[%emt 0:03:05]} (14. Qxd5 {simplifies} Qe6+ 15. Qxe6+ fxe6 16. Bxb5+ Kd8 17. Bc4) 14... Kd8 {[%emt 0:02:31]} 15. Qxd5 {[%emt 0:01:16]} Qe6+ {[%emt 0:00:25] Black is weak on the light squares} 16. Qxe6 {[%emt 0:02:53]} fxe6 {[%emt 0:00:02]} 17. a3 {[%emt 0:11:42]} Kc7 {[%emt 0:02:29]} 18. O-O-O {[%emt 0:01:27]} Nc6 {[%emt 0:00:50]} 19. c3 {[%emt 0:00:30]} Be7 {[%emt 0:03:00]} 20. h4 {[%emt 0:04:32]} Rhf8 {[%emt 0:03:57]} 21. g3 {[%emt 0:03:17]} Ra5 {[%emt 0:05:12]} 22. a4 {[%emt 0:05:36]} (22. Bc4 $14) 22... Raa8 {[%emt 0:02:26]} 23. Rhe1 {[%emt 0:01:45]} e5 {[%emt 0:03:30]} 24. Be3 {[%emt 0:00:19]} Rfd8 {[%emt 0:00:50]} 25. f4 {[%emt 0:09:17]} Bf6 {[%emt 0:03:03]} 26. fxe5 {[%emt 0:01:04]} Bxe5 {[%emt 0:01:09]} 27. Bf4 {[%emt 0:04:02]} Rf8 {[%emt 0:04:01]} 28. Bxc6 {[%emt 0:02:15]} Bxf4+ {[%emt 0:00:05]} 29. gxf4 {[%emt 0:00:02]} Kxc6 $11 {[%emt 0:00:10][%mdl 4096] Endgame KRR-KRR} 30. Re6 {[%emt 0:00:39]} Rad8 {[%emt 0:00:13]} 31. Rf1 {[%emt 0:00:40]} Rd7 {[%emt 0:01:04]} (31... Rde8 32. Rxe8 Rxe8 33. h5 $17) 32. Kd2 {[%emt 0:00:39]} Kd5 {[%emt 0:00:23]} 33. Re3 {[%emt 0:00:36]} Rdf7 {[%emt 0:00:13]} 34. Ref3 {[%emt 0:00:29]} c4 {[%emt 0:02:57]} 35. R1f2 {[%emt 0:00:31]} ({White should try} 35. f5 $15) 35... Ra8 {[%emt 0:00:47]} 36. b3 $2 {[%emt 0:00:25]} cxb3 $19 {[%emt 0:00:12]} 37. Rd3+ {[%emt 0:00:23]} (37. c4+ $142 Kxc4 38. Rc3+ Kb4 39. Rff3 Rxa4 40. Rxb3+ Ka5 (40... Kc5 $2 41. Rfc3+ Rc4 42. Rxc4+ Kxc4 43. Rxb6 $19) 41. Rfd3 Rfxf4 42. Rd5+ Ka6 43. Rdb5) 37... Kc5 {[%emt 0:00:23]} 38. Rd4 {[%emt 0:00:22]} b5 {[%emt 0:00:09]} 39. axb5 {[%emt 0:00:34]} (39. a5) 39... Ra2+ {[%emt 0:00:23]} 40. Ke3 {[%emt 0:00:05]} Rxf2 {[%emt 0:00:16]} ({Less strong is} 40... Kxb5 41. Rb4+ Kc5 42. Rxa2 bxa2 (42... Re7+ 43. Kd3 $11) 43. Ra4 $11) 41. Kxf2 {[%emt 0:00:05] KR-KR} b2 {[%emt 0:00:10]} (41... Kxb5 42. Rb4+ Kc6 43. Rc4+ (43. Kg3 $2 Rb7 $19) 43... Kb6 44. Rb4+ Ka7 45. Rxb3 $17) 42. Rd1 {[%emt 0:00:49]} Rxf4+ {[%emt 0:00:10]} (42... Kxb5 $2 43. Rb1 $19) (42... Kc4 $142 43. Ke3 Rf5 (43... Kxb5 44. Rb1 $17) (43... Kxc3 $2 44. Rd3+ Kb4 45. Rd1 $19)) 43. Kg3 {[%emt 0:01:16]} Rc4 {[%emt 0:00:10]} (43... Ra4 $142 44. Rb1 Ra2 (44... Kxb5 45. Rxb2+ Kc6 46. Rf2 $17)) 44. b6 {[%emt 0:00:29]} Rxc3+ {[%emt 0:00:08] Black mates.} 45. Kg4 {[%emt 0:00:12]} Rb3 {[%emt 0:00:52]} 46. Rb1 {[%emt 0:00:50]} Rxb6 {[%emt 0:00:06]} 47. Kg5 {[%emt 0:00:21]} Kc4 {[%emt 0:00:05]} 48. h5 {[%emt 0:00:11]} Kc3 {[%emt 0:00:04]} 49. h6 {[%emt 0:00:14]} Rb5+ {[%emt 0:00:10]} 50. Kh4 {[%emt 0:00:21]} gxh6 {[%emt 0:00:05]} 51. Kh3 {[%emt 0:01:13]} Kc2 {[%emt 0:00:07]} 52. Rg1 {[%emt 0:00:27]} Rh5+ {[%emt 0:00:06]} 53. Kg3 {[%emt 0:00:24]} Rg5+ {[%emt 0:00:05]} 54. Kh4 {[%emt 0:00:10]} Rxg1 {[%emt 0:00:06]} 55. Kh5 {[%emt 0:00:05]} b1=Q {[%emt 0:00:10]} 56. Kxh6 {[%emt 0:00:02]} Qb2 {[%emt 0:00:21]} 57. Kh5 {[%emt 0:00:08]} Qg7 {[%emt 0:00:08][%cal Rg1h1]} 58. Kh4 {[%emt 0:00:03]} Qg4# {[%emt 0:00:05] Black used his chance.   Weighted Error Value: White=0.65/Black=0.38  Mistake:       	White=6     	Black=1      Inaccurate:     	White=6     	Black=4      OK:         	White=10    	Black=12     Best:        	White=3     	Black=7} 0-1

[Event "12th National Amateur Chess-ch 2025"]
[Site "Bihar"]
[Date "2025.03.26"]
[Round "2.14"]
[White "Nivedita V C"]
[Black "Theephigaa K P"]
[Result "1-0"]
[Annotator "TA"]
[ECO "E09"]
[WhiteElo "1950"]
[BlackElo "1792"]
[PlyCount "99"]
[EventDate "2025.03.25"]
[EventCountry "IND"]
[SourceTitle "playchess.com"]
[Source "ChessBase"]
[SourceQuality "1"]
[TimeControl "5400+30"]

{[%evp 21,98,2,16,-29,-21,-13,-9,-9,-10,-31,-22,-58,-26,-45,-12,-15,-20,-29,-21,-27,-12,-19,25,29,63,16,47,49,52,42,95,100,106,114,130,120,768,763,764,746,761,752,750,747,741,715,836,853,912,867,1106,1124,1103,1106,1324,1246,1361,1081,1497,969,5406,5406,29984,29985,29995,29996,29996,29995,29995,29996,29996,29997,29997,29997,29997,29998,29998,29999,29999]} 1. d4 {[%emt 0:04:32]} d5 {[%emt 0:05:06]} 2. Nf3 {[%emt 0:00:14]} Nf6 {[%emt 0:00:37]} 3. g3 {[%emt 0:00:06]} e6 {[%emt 0:00:27]} 4. Bg2 {[%emt 0:00:05]} Be7 {[%emt 0:02:25]} 5. c4 {[%emt 0:00:14]} O-O {[%emt 0:01:04]} 6. O-O {[%emt 0:00:05]} Nbd7 {[%emt 0:00:57]} 7. Nbd2 {[%emt 0:04:41]} c6 {[%emt 0:02:06][%cal Bc7c6,Bc6c5][%mdl 32]} 8. Qc2 {[%emt 0:01:20]} b6 {[%emt 0:04:08]} 9. e4 {[%emt 0:07:42]} dxc4 {[%emt 0:11:16]} 10. Nxc4 {[%emt 0:13:40]} Bb7 {[%emt 0:03:19]} 11. Rd1 {[%emt 0:05:11] 11.Bf4 gains popularity.} c5 {[%emt 0:07:31]} 12. Ng5 {[%emt 0:02:06] [#] E09: Closed Catalan: Main Line: 7 Qc2 c6 8 Nbd2.} h6 {[%emt 0:29:22]} 13. e5 $1 {[%emt 0:00:36]} Bxg2 {[%emt 0:02:10]} 14. exf6 {[%emt 0:01:33] The position is equal.} Nxf6 {[%emt 0:00:49]} 15. Kxg2 {[%emt 0:00:31]} hxg5 {[%emt 0:01:05]} 16. dxc5 {[%emt 0:00:24]} Nd5 {[%emt 0:11:04]} 17. cxb6 {[%emt 0:00:55]} axb6 {[%emt 0:00:23]} 18. Ne3 {[%emt 0:03:04]} Ra5 {[%emt 0:05:42]} 19. Qb3 {[%emt 0:09:17]} Nxe3+ $146 {[%emt 0:01:44]} ({Predecessor:} 19... Qa8 20. Nxd5 Rd8 21. Be3 Raxd5 22. Rxd5 Rxd5 23. Kg1 b5 24. Rc1 Bf6 25. Rc5 Rxc5 26. Bxc5 {½-½ Szotkowski,J (2366)-Kubicka,A (2210) Warsaw op-A 2021 (4)}) 20. Bxe3 {[%emt 0:00:07]} Qa8+ {[%emt 0:00:28]} 21. Kg1 {[%emt 0:00:07][%cal Od1d7]} Ra6 {[%emt 0:08:38][%cal Ob6b5]} 22. a3 {[%emt 0:02:55]} (22. Bxb6 $2 Rb8 23. Rd7 Raxb6 $19 (23... Rbxb6 $2 24. Qd1 $19)) 22... Rd8 {[%emt 0:00:37]} 23. Qb5 {[%emt 0:02:29]} (23. Bxb6 $2 Rb8 24. Qe3 Raxb6 $19 (24... Rbxb6 $2 25. b3 $19)) (23. Rxd8+ $14 Bxd8 24. Qb5) 23... Re8 {[%emt 0:00:30]} 24. Rac1 {[%emt 0:03:28][%cal Od1d7]} (24. Bxb6 Rb8 25. Qd7 Rb7 $17) (24. Bxg5 $2 Ra5 25. Qxb6 Bxg5 $19 (25... Rxg5 $2 26. Rac1 $19)) 24... Bf6 {[%emt 0:00:26]} 25. Rd7 {[%emt 0:03:37][%cal Oc1c7]} (25. Bxg5 $2 Ra5 26. Qxb6 Bxg5 $19 (26... Rxg5 $2 27. Rd7 $19)) (25. Bxb6 Rb8 26. Rd6 Be7 $17) 25... Rc8 {[%emt 0:00:29]} (25... Ra5 $14 26. Qb3 (26. Qxb6 Rb8 $11) 26... g4) 26. Rcc7 $16 {[%emt 0:02:37] White has more active pieces.} (26. Bxg5 $2 Ra5 27. Rxc8+ Qxc8 28. Qxb6 Rxg5 $19) 26... Rxc7 {[%emt 0:00:26]} 27. Rxc7 {[%emt 0:00:03][%cal Ob5d7] White plays on the queen side and is better} Ra5 {[%emt 0:00:38]} 28. Qd7 {[%emt 0:01:25] [#] and Rc8+ should not be overlooked} ({Not} 28. Qxb6 Bd8 29. h3 Bxc7 30. Qxc7 Rd5 $17) 28... Qf8 {[%emt 0:00:26][%mdl 8192] Black cannot hold the game after this.} (28... Qf3 $16) 29. Rc8 $18 {[%emt 0:00:06]} ({Less strong is} 29. Bxb6 Rd5 30. Qc6 Qd6 $16) 29... Rd5 {[%emt 0:00:32]} 30. Rxf8+ {[%emt 0:00:06]} Kxf8 {[%emt 0:00:06]} 31. Qc8+ {[%emt 0:00:09]} Rd8 {[%emt 0:00:21]} 32. Qc7 {[%emt 0:00:20]} b5 {[%emt 0:00:18]} 33. Qc5+ {[%emt 0:00:06]} Kg8 {[%emt 0:00:05]} 34. Qxb5 {[%emt 0:00:05]} Rd1+ {[%emt 0:00:05]} 35. Kg2 {[%emt 0:00:03]} Rd5 {[%emt 0:00:09]} 36. Qe8+ {[%emt 0:00:08]} Kh7 {[%emt 0:00:04]} 37. Qxf7 {[%emt 0:00:04]} Bxb2 {[%emt 0:01:16]} 38. Qxe6 {[%emt 0:00:08]} Re5 {[%emt 0:00:17]} 39. Qd6 {[%emt 0:00:06]} Ra5 {[%emt 0:00:58][%cal Be5a5,Ba5a3,Ba3a6][%mdl 32]} 40. Qb6 {[%emt 0:00:10]} Rxa3 {[%emt 0:00:10]} 41. Qxb2 {[%emt 0:00:07]} Ra6 {[%emt 0:00:14]} 42. Qc2+ {[%emt 0:00:07] White mates.} Kh6 {[%emt 0:00:31]} 43. h4 {[%emt 0:00:15][%cal Bh2h4,Bh4g5][%mdl 32]} Rg6 {[%emt 0:01:12]} 44. hxg5+ {[%emt 0:00:08]} Kh7 {[%emt 0:00:14]} 45. Bd4 {[%emt 0:00:11]} Kg8 {[%emt 0:00:06]} 46. Qxg6 {[%emt 0:00:05][%csl Gd4][%cal Rg6g7]} Kf8 {[%emt 0:00:19]} 47. Bc5+ {[%emt 0:00:06]} Kg8 {[%emt 0:00:05]} 48. Bb4 {[%emt 0:00:03]} Kh8 {[%emt 0:00:11]} 49. Bc3 {[%emt 0:00:03][%csl Gc3][%cal Rg6g7]} Kg8 {[%emt 0:00:06]} 50. Qxg7# {[%emt 0:00:05] Weighted Error Value: White=0.09 (flawless) /Black=0.70  Loses game:     	---       	Black=1      Mistake:       	White=1     	Black=1      Inaccurate:     	---       	Black=5      OK:         	White=8     	Black=5      Best:        	White=3     	Black=2      Strong:       	White=1     	---} 1-0

[Event "12th National Amateur Chess-ch 2025"]
[Site "Bihar"]
[Date "2025.03.26"]
[Round "2.15"]
[White "Aamuktha Guntaka"]
[Black "Vakcheri Mohitha"]
[Result "1-0"]
[Annotator "TA"]
[ECO "C01"]
[WhiteElo "1910"]
[BlackElo "1778"]
[PlyCount "119"]
[EventDate "2025.03.25"]
[EventCountry "IND"]
[SourceTitle "playchess.com"]
[Source "ChessBase"]
[SourceQuality "1"]
[TimeControl "5400+30"]

{[%evp 9,119,-16,0,-10,0,0,-15,-5,27,26,46,29,44,33,35,0,0,0,0,-5,21,0,0,-37,-15,-26,-6,-8,-11,-4,-13,-11,-6,-11,27,0,0,0,0,0,0,0,0,0,0,0,1,7,16,0,22,20,42,48,91,76,86,95,227,225,225,179,196,188,199,176,261,256,229,147,141,141,145,122,178,172,160,152,165,158,164,164,173,167,29963,29945,6295,912,5528,5457,5485,5485,1652,0,795,795,779,729,708,0,0,0,677,663,29979,29980,29985,29986,29990,1290,1133,1089]} 1. e4 {[%emt 0:00:21]} e6 {[%emt 0:00:08]} 2. d4 {[%emt 0:00:11]} d5 {[%emt 0:00:06]} 3. Bd3 {[%emt 0:00:30][%cal Bf1d3,Bd3e4,Be4f3][%mdl 32]} dxe4 {[%emt 0:00:08]} 4. Bxe4 {[%emt 0:00:07]} Nf6 {[%emt 0:00:07]} 5. Bf3 {[%emt 0:00:06]} Be7 {[%emt 0:00:17]} 6. Ne2 {[%emt 0:00:33] C01: French: Exchange Variation.} O-O {[%emt 0:00:21]} 7. O-O {[%emt 0:00:14]} c5 {[%emt 0:03:36]} 8. Nbc3 {The position is equal.} a6 {[%emt 0:04:45]} 9. Bf4 {[%emt 0:10:30]} Nbd7 {[%emt 0:14:43][%cal Bb8d7,Bd7c5,Bc5e6,Be6d4][%mdl 32]} 10. dxc5 $146 {[%emt 0:14:39]} (10. Re1 Re8 11. Qd3 Nb6 12. dxc5 Qxd3 13. cxd3 Bxc5 14. Rac1 Be7 15. Nd4 Kf8 16. Bc7 {½-½ Koykka,P (2382)-Henderson de la Fuente,L (2463) Pardubice Czech op-A 29th 2018 (5)}) 10... e5 {[%emt 0:14:04]} 11. c6 {[%emt 0:09:18]} bxc6 {[%emt 0:01:25]} 12. Bxc6 {[%emt 0:02:46]} Rb8 {[%emt 0:00:07] Black sacrificed a pawn} 13. Bc1 {[%emt 0:03:42]} Qc7 {[%emt 0:01:00]} 14. Bf3 {[%emt 0:10:29]} Nc5 {[%emt 0:01:03]} 15. Ng3 {[%emt 0:01:41]} Rd8 {[%emt 0:02:39]} 16. Qe1 Ne6 {[%emt 0:03:56] Prevents Bg5} 17. Nge4 $1 {[%emt 0:13:27]} Nxe4 {[%emt 0:05:22]} 18. Bxe4 {[%emt 0:00:31]} Nd4 {[%emt 0:01:19]} 19. Rb1 {[%emt 0:10:19]} Be6 {[%emt 0:00:54] Prevents Nd5.} 20. Bd3 {[%emt 0:02:00]} f5 {[%emt 0:15:43] White should prevent ...e4.} 21. f3 {[%emt 0:01:44]} f4 {[%emt 0:08:10]} 22. Bd2 {[%emt 0:02:19][%cal Og1h1]} Bf5 {[%emt 0:01:51]} 23. Bxf5 {[%emt 0:06:31]} Nxf5 {[%emt 0:00:07]} 24. Ne4 {[%emt 0:01:12]} Qxc2 {[%emt 0:08:18][%cal Od8d2] [#] Hoping for ...Rxd2!.} 25. Bc3 {[%emt 0:02:12]} Rd5 {[%emt 0:10:45]} 26. Rf2 {[%emt 0:03:34]} Qa4 {[%emt 0:00:06][%cal Oe7h4]} 27. b3 {[%emt 0:00:41]} Qd7 {[%emt 0:00:30]} 28. Rd2 {[%emt 0:01:11]} Rd8 {[%emt 0:01:40]} 29. Rbd1 {[%emt 0:01:20]} Qa7+ {[%emt 0:00:25]} 30. Kh1 {[%emt 0:02:21]} Rxd2 {[%emt 0:00:46]} 31. Rxd2 {[%emt 0:00:15]} Qc7 {[%emt 0:00:58]} 32. Rxd8+ {[%emt 0:00:50]} Bxd8 {[%emt 0:00:11]} 33. Qd2 $36 {[%emt 0:00:39][%mdl 2048] White has strong initiative.} Bf6 {[%emt 0:00:45]} (33... Ne3 $16) 34. Qd5+ $18 {[%emt 0:00:34]} Kf8 {[%emt 0:00:40]} 35. Qa8+ {[%emt 0:00:38]} Kf7 {[%emt 0:00:25]} 36. Qxa6 {[%emt 0:00:22]} Qd7 {[%emt 0:00:31] ( -> ...Qd1+)} 37. Qc4+ {[%emt 0:00:21]} Kg6 {[%emt 0:00:07]} (37... Qe6 $142 38. Qd3 g5) 38. Qe2 {[%emt 0:00:40]} Ne3 {[%emt 0:00:11]} 39. Bd2 {[%emt 0:00:36]} Qd4 {[%emt 0:00:51]} 40. Bxe3 {[%emt 0:00:33]} fxe3 $16 {[%emt 0:00:16][%mdl 4096] Endgame KQB-KQN. White is a pawn up.} 41. g3 {[%emt 0:00:22]} Be7 {[%emt 0:00:29]} (41... Bd8 $16 42. Kg2 h5) 42. Qc2 $18 {[%emt 0:00:34]} Kf7 {[%emt 0:00:13]} 43. Kg2 {[%emt 0:00:22]} Bb4 {[%emt 0:01:22]} 44. Kf1 {[%emt 0:00:40]} Qa1+ {[%emt 0:00:25] [#]} 45. Ke2 $1 {[%emt 0:00:31] Threatens to win with Qc4+.} Qe1+ {[%emt 0:00:32]} 46. Kd3 {[%emt 0:00:05]} Bd2 $2 {[%emt 0:00:39]} (46... h6 $18 47. g4 Kg6) 47. Qc7+ {[%emt 0:00:46]} Kf8 {[%emt 0:00:21]} 48. Qd6+ {[%emt 0:00:38]} (48. Qxe5 Qf1+ 49. Kc2 (49. Kd4 $2 Qa1+ 50. Kd5 Qxe5+ 51. Kxe5 e2 $19) 49... Qc1+ 50. Kd3 Qf1+ 51. Kc2 Qc1+ 52. Kd3 Qf1+ $11) (48. Qd8+ $142 Kf7 49. Qd7+ Kf8 50. Ng5 Qb1+ 51. Kc4 Qc2+ 52. Kb5) 48... Kg8 {[%emt 0:00:14]} 49. Qd8+ {[%emt 0:00:31]} (49. Qxe5 Qf1+ 50. Kc2 (50. Kd4 $2 Qa1+ 51. Kd5 Qxe5+ 52. Kxe5 e2 $19) 50... Qc1+ 51. Kd3 Qf1+ 52. Kc2 Qc1+ 53. Kd3 Qf1+ $11) 49... Kf7 {[%emt 0:00:06]} 50. Qd7+ {[%emt 0:00:29]} Kf8 {[%emt 0:00:12]} 51. Qd6+ {[%emt 0:00:31]} (51. Nd6 $142 Qb1+ 52. Kc4 Qc2+ 53. Kb5 Qd3+ 54. Kb6 Qd4+ 55. Ka6 Qd3+ 56. Kb7 Qd5+ 57. Kb8) 51... Kg8 {[%emt 0:00:13]} 52. Qe6+ {[%emt 0:00:29]} (52. Qxe5 Qf1+ 53. Kc2 (53. Kd4 $2 Qa1+ 54. Kd5 Qxe5+ 55. Kxe5 e2 $19) 53... Qc1+ 54. Kd3 Qf1+ 55. Kc2 Qc1+ 56. Kd3 Qf1+ $11) 52... Kf8 {[%emt 0:00:08]} 53. Nd6 {[%emt 0:00:31][%csl Gd6][%cal Re6f7]} ({Weaker is} 53. Qxe5 Qf1+ 54. Kc2 (54. Kd4 $2 Qa1+ 55. Kd5 Qxe5+ 56. Kxe5 e2 $19) 54... Qc1+ 55. Kd3 Qf1+ 56. Kc2 Qc1+ 57. Kd3 Qf1+ $11) 53... Qb1+ {[%emt 0:01:58]} 54. Ke2 {[%emt 0:00:24][%csl Gd6][%cal Re6e8]} Qe1+ {[%emt 0:00:07]} 55. Kd3 {[%emt 0:00:02][%csl Gd6][%cal Re6f7] The board is on fire.} Qb1+ {[%emt 0:00:07]} 56. Kc4 {[%emt 0:00:42][%csl Gd6][%cal Re6f7]} Qc2+ {[%emt 0:00:54]} 57. Kb5 {[%emt 0:00:36][%csl Gd6][%cal Re6e8]} Qd3+ {[%emt 0:00:17]} 58. Kb6 {[%emt 0:00:41][%csl Gd6][%cal Re6f7]} Qd4+ {[%emt 0:00:46]} 59. Ka6 {[%emt 0:00:24]} (59. Kc6 $142 Qxd6+ 60. Qxd6+ Kg8 61. Qe6+ (61. Qxe5 h6 $18) 61... Kf8 62. Kd7 (62. Qxe5 g5 $18) 62... g6 63. Qe7+ (63. Qxe5 Kf7 $18) 63... Kg8 64. Ke8 (64. Qxe5 Bb4 $18)) 59... Qd3+ {[%emt 0:00:53]} 60. Kb7 {[%emt 0:00:39] Weighted Error Value: White=0.51/Black=0.41  Mistake:       	---       	Black=4      Inaccurate:     	White=4     	Black=5      OK:         	White=18    	Black=12     Best:        	White=4     	Black=8      Strong:       	White=2     	---} 1-0